Cogmind - Beta 9.4 @@@ ROGUE MODE // 2020.02.14 @ 09:07:52 Player: Hamilcar Result: Self-destructed Performance ------------- Evolutions (2) 1000 Regions Visited (3) 600 Robots Destroyed (36) 180 Value Destroyed (993) 993 Prototype IDs (1) 20 Alien Tech Used (0) 0 Bonus (0) 0 TOTAL SCORE: 2793 Bonus ------- None Cogmind --------- Core Integrity 432/550 Matter 135/300 Energy 100/100 System Corruption 4% Temperature Cool (0) Movement Hovering (80) Location -8/Materials Parts ------- > --- POWER (2) -------- Light Ion Engine > --- PROPULSION (3) --- Improved Treads Improved Hover Unit > --- UTILITY (4) ------ Improved Sensor Array Signal Interpreter Salvage Targeting Computer Hacking Suite > --- WEAPON (2) ------- Improved Light Cannon > --- INVENTORY (4) ---- Structural Scanner Improved Sensor Array Missile Launcher Improved Datajack Peak State ------------ > --- POWER ------------ Light Deuterium Engine > --- PROPULSION ------- Improved Treads Improved Hover Unit > --- UTILITY ---------- Improved Sensor Array Signal Interpreter Salvage Targeting Computer Hacking Suite > --- WEAPON ----------- Improved Light Cannon Improved Datajack > --- INVENTORY -------- Light Ion Engine Structural Scanner Improved Sensor Array Missile Launcher [Rating: 20] Favorites ----------- Power Ion Engine Engine Ion Engine Propulsion Aluminum Leg Treads Improved Treads Leg Aluminum Leg Hover Unit Improved Hover Unit Utility Propulsion Shielding Device Improved Sensor Array Storage Small Storage Unit Processor Targeting Computer Hackware Hacking Suite Protection Propulsion Shielding Weapon Autogun Energy Gun Small Laser Ballistic Gun Autogun Ballistic Cannon Improved Light Cannon Launcher Missile Launcher Special Melee Weapon Improved Datajack Build | -11 -10 -9 -8 ------- Run | Scr Mat Mat Mat Slots Evolved 4 | . . 2 2 Power 1 | . . . 1 Propulsion 1 | . . . 1 Utility 2 | . . 2 . Weapon . | . . . . Parts Attached 35 | 6 1 16 12 Power 4 | 1 . 1 2 Engine 4 | 1 . 1 2 Core . | . . . . Reactor . | . . . . Propulsion 5 | 2 . 3 . Treads 1 | . . 1 . Leg 2 | 2 . . . Wheel . | . . . . Hover 2 | . . 2 . Flight . | . . . . Utility 13 | 1 1 7 4 Device 6 | . . 5 1 Storage 1 | 1 . . . Processor 4 | . 1 1 2 Hackware 1 | . . . 1 Protection 1 | . . 1 . Artifact . | . . . . Weapon 13 | 2 . 5 6 Energy Gun 4 | 1 . 3 . Energy Cannon . | . . . . Ballistic Gun 4 | 1 . 2 1 Ballistic Cannon 1 | . . . 1 Launcher 3 | . . . 3 Special Weapon . | . . . . Impact Weapon . | . . . . Slashing Weapon . | . . . . Piercing Weapon . | . . . . Special Melee Weapon 1 | . . . 1 Unidentified Prototypes 1 | . . 1 . Parts Lost 7 | . . 4 3 Power 1 | . . . 1 Propulsion 1 | . . 1 . Utility 1 | . . 1 . Weapon 4 | . . 2 2 Highest Loss Streak 3 | . . 3 2 Average Slot Usage (%) 87 | . 94 93 75 Engine 10 | . 14 11 8 Treads 6 | . . 5 9 Leg 7 | . 28 9 . Hover 6 | . . 6 9 Device 9 | . . 11 10 Storage 3 | . 14 5 . Processor 13 | . 8 12 16 Protection 8 | . . 11 6 Energy Gun 7 | . 14 10 2 Ballistic Gun 8 | . 14 11 2 Ballistic Cannon 1 | . . . 2 Launcher 1 | . . . 4 Naked Turns . | . . . . Heaviest Build 18 | 11 11 17 18 Greatest Support 23 | 20 20 23 8 Greatest Overweight (x) 2 | 1 . 1 2 Average Overweight (x) . | . . . . Largest Inventory Capacity 6 | 6 6 6 4 Average Capacity 4 | 4 6 4 4 Most Carried 6 | 4 6 6 4 Average Carried 4 | 2 5 4 3 Final Capacity 6 | 6 6 4 4 Final Carried 6 | 4 6 4 4 Class Distribution -------------------- 94% | Mutant 5% | Scavenger-Mutant Dominant Class ---------------- Mutant | -10/Materials Mutant | -9/Materials Mutant | -8/Materials Resources | -11 -10 -9 -8 ----------- Run | Scr Mat Mat Mat Matter Collected 721 | 187 20 361 153 Remotely . | . . . . Salvage Created 979 | . 20 665 294 Parts 77 | . 3 53 21 Haulers Intercepted . | . . . . Recyclers Shooed 4 | . . 2 2 Parts Field Recycled . | . . . . Retrieved Matter . | . . . . Parts Self-Destructed . | . . . . Prevented . | . . . . Kills | -11 -10 -9 -8 ------- Run | Scr Mat Mat Mat Combat Hostiles Destroyed 26 | . . 15 11 Melee 1 | . . . 1 Guns 14 | . . 14 . Cannons 1 | . . . 1 AOE 10 | . . 1 9 Classes Destroyed 7 | . 1 4 2 Builder 5 | . . 3 2 Recycler 1 | . . . 1 Watcher 4 | . 1 2 1 Swarmer 8 | . . 4 4 Grunt 13 | . . 8 5 Brawler 1 | . . . 1 Sentry 4 | . . 3 1 Best Kill Streak 7 | . 1 7 6 Combat Bots Only 6 | . . 6 5 Max Kills in Single Turn 3 | . 1 3 3 Gunslinging . | . . . . Exploded 3 | . . 1 3 Melee 1 | . . . 1 Uniques/NPCs Destroyed . | . . . . Combat | -11 -10 -9 -8 -------- Run | Scr Mat Mat Mat Damage Taken 1318 | . . 833 485 Core 286 | . . 168 118 Absorbed by Shields . | . . . . Core Remaining (%) 86 | 100 100 58 . Volleys Fired 72 | . 1 48 23 Largest 2 | . 2 2 2 Hottest 76 | . 70 73 76 Shots Fired 115 | . 2 77 36 Gun 89 | . 2 77 10 Cannon 11 | . . . 11 Launcher 15 | . . . 15 Special . | . . . . Kinetic 66 | . 1 48 17 Thermal 10 | . 1 5 4 Explosive 15 | . . . 15 Electromagnetic 24 | . . 24 . Robot Hit Streak 12 | . 1 12 8 Robot Miss Streak 5 | . . 3 5 Penetration Max . | . . . . Secondary Targets 2 | . . 2 . Max Gunslinging Chain 1 | . . 1 . Shots Hit Robots 76 | . 1 59 16 Core Hits 62 | . 1 31 30 Critical Hits 2 | . . . 2 Critical Kills . | . . . . Critical Parts Destroyed 2 | . . . 2 Melee Attacks . | . . . . Impact . | . . . . Slashing . | . . . . Piercing . | . . . . Sneak Attacks . | . . . . Combat Hostiles . | . . . . Follow-up Attacks . | . . . . Damage Inflicted 2536 | . 13 876 1647 Guns 818 | . 13 767 38 Cannons 86 | . . . 86 Explosions 1575 | . . 109 1466 Melee . | . . . . Ramming 57 | . . . 57 Kinetic 550 | . . 436 114 Thermal 157 | . 13 134 10 Explosive 1466 | . . . 1466 Electromagnetic 306 | . . 306 . Impact . | . . . . Slashing . | . . . . Piercing . | . . . . Highest Corruption 4 | . . . 4 Average Corruption 2 | . . . 2 Corruption Purged . | . . . . Overload Shots . | . . . . Overflow Damage 44 | . . 1 43 Projectiles . | . . . . Explosions 44 | . . 1 43 Melee . | . . . . Knockbacks 3 | . . . 3 Impact 3 | . . . 3 Kinetic . | . . . . Secondary . | . . . . Self-Inflicted Damage 109 | . . 40 69 Shots 3 | . . 1 2 Rammed 20 | . . . 20 Targets Rammed 20 | . . . 20 Kicked . | . . . . Crushed . | . . . . Highest Temperature 116 | . 9 116 20 Average Temperature 26 | . 6 32 10 Received Heat Transfer 468 | . . 351 117 Siege Activations . | . . . . Robots Corrupted . | . . . . Combat Hostiles . | . . . . Parts Fried 1 | . . 1 . Impact Corruptions . | . . . . Robots Melted . | . . . . Combat Hostiles . | . . . . Parts Melted . | . . . . Heat Transferred 286 | . 37 224 25 Parts Sabotaged . | . . . . Parts Stolen . | . . . . Parts Stripped . | . . . . Power Chain Reactions 1 | . . 1 . Missiles Intercepted . | . . . . Alert | -11 -10 -9 -8 ------- Run | Scr Mat Mat Mat Peak Influence 337 | . 7 336 337 Average Influence 168 | . 5 183 194 Maximum Alert Level 1 | . . 1 1 Low Security (%) 46 | 100 100 44 34 Level 1 53 | . . 55 65 Level 2 . | . . . . Level 3 . | . . . . Level 4 . | . . . . Level 5 . | . . . . High Security . | . . . . Max Security . | . . . . Squads Dispatched 3 | . . 3 . Investigation 1 | . . 1 . Extermination . | . . . . Reinforcement 2 | . . 2 . Assault . | . . . . Garrison . | . . . . Intercept . | . . . . Construction Impeded . | . . . . Haulers Reinforced . | . . . . Stealth | -11 -10 -9 -8 --------- Run | Scr Mat Mat Mat Distress Signals 4 | . . 1 3 Communications Jammed . | . . . . Distress Signals . | . . . . Times Spotted 38 | . 1 22 15 Peak Tracking Total 7 | . 1 7 6 Tactical Retreats 3 | . . 2 1 Traps | -11 -10 -9 -8 ------- Run | Scr Mat Mat Mat Traps Triggered . | . . . . Indirectly . | . . . . Trap Hack Attempts . | . . . . Triggered . | . . . . Disarmed . | . . . . Reprogrammed . | . . . . Reused . | . . . . Traps Extracted . | . . . . Installed . | . . . . Triggered . | . . . . Machines | -11 -10 -9 -8 ---------- Run | Scr Mat Mat Mat Machines Disabled 7 | . . 1 6 Max in Single Turn 2 | . . 1 2 Machines Sabotaged . | . . . . Garrisons Compromised . | . . . . Overloaded Fab Kills . | . . . . Fab Network Shutdowns . | . . . . Hacking | -11 -10 -9 -8 --------- Run | Scr Mat Mat Mat Machines Accessed 3 | . . 2 1 Terminals 3 | . . 2 1 Fabricators . | . . . . Repair Stations . | . . . . Recycling Units . | . . . . Scanalyzers . | . . . . Garrison Access . | . . . . Total Hacks 5 | . . 4 1 Successful 3 | . . 2 1 Failed 2 | . . 2 . Catastrophic . | . . . . Database Lockouts . | . . . . Manual . | . . . . Terminals 5 | . . 4 1 Fabricators . | . . . . Repair Stations . | . . . . Recycling Units . | . . . . Scanalyzers . | . . . . Garrison Access . | . . . . Terminal Hacks 3 | . . 2 1 Emergency Access Points 1 | . . . 1 Locate Traps 1 | . . 1 . Security Status 1 | . . 1 . Fabricator Hacks . | . . . . Repair Station Hacks . | . . . . Recycling Unit Hacks . | . . . . Scanalyzer . | . . . . Garrison Access Hacks . | . . . . Unauthorized Hacks . | . . . . Terminals . | . . . . Fabricators . | . . . . Repair Stations . | . . . . Recycling Units . | . . . . Scanalyzers . | . . . . Garrison Access . | . . . . Data Cores Recovered . | . . . . Used . | . . . . Hacking Detections 2 | . . 1 1 Full Trace Events 1 | . . 1 . Feedback Events . | . . . . Feedback Blocked . | . . . . Robot Schematics Acquired . | . . . . Robots Built . | . . . . Matter . | . . . . Time . | . . . . Total Robot Build Rating . | . . . . Part Schematics Acquired . | . . . . Parts Built . | . . . . Matter . | . . . . Time . | . . . . Total Part Build Rating . | . . . . Parts Repaired . | . . . . Time . | . . . . Parts Recycled . | . . . . Recycled Matter . | . . . . Retrieved Matter . | . . . . Retrieved Components . | . . . . Parts Scanalyzed . | . . . . Part Schematics Acquired . | . . . . Parts Damaged . | . . . . Bothacking | -11 -10 -9 -8 ------------ Run | Scr Mat Mat Mat Used RIF Installer . | . . . . Robots Hacked . | . . . . Non-combat . | . . . . Combat . | . . . . Robot Hacks Applied . | . . . . Relay Couplers Released . | . . . . Robots Rewired . | . . . . Allies Hacked . | . . . . Hacks Repelled . | . . . . Allies | -11 -10 -9 -8 -------- Run | Scr Mat Mat Mat Total Allies . | . . . . Largest Group . | . . . . Highest-Rated Group . | . . . . Highest-Rated Ally . | . . . . Total Orders . | . . . . Ally Attacks . | . . . . Total Damage . | . . . . Kills . | . . . . Allies Corrupted . | . . . . Allies Melted . | . . . . Intel | -11 -10 -9 -8 ------- Run | Scr Mat Mat Mat Robot Analysis Total . | . . . . Derelict Logs Recovered . | . . . . Drone Launches . | . . . . Drone Recoveries . | . . . . Exploration | -11 -10 -9 -8 ------------- Run | Scr Mat Mat Mat Turns Passed 1648 | 60 114 906 568 Spaces Moved 875 | 41 90 417 327 Core 4 | 4 . . . Treads 13 | . . 13 . Legs 316 | 37 90 189 . Wheels . | . . . . Hover 542 | . . 215 327 Flight . | . . . . Fastest Speed 50 | 50 120 56 80 Average Speed 123 | 115 120 121 128 Slowest Speed 200 | 120 120 160 200 Overloaded Moves . | . . . . Propulsion Burnouts . | . . . . Robots Hopped . | . . . . Cave-ins Triggered . | . . . . Exploration Rate (%) 23 | 3 28 34 28 Regions Visited 3 Branch Regions . Pre-discovered Areas . | . . . . Known Exits Taken . | . . . . Unknown Exits Taken 3 | 1 1 1 . Scrap Searched . | . . . . Spaces Dug . | . . . . Terrain Destroyed 100 | . . 3 97 Melee . | . . . . Projectile 1 | . . . 1 AOE 99 | . . 3 96 Actions | -11 -10 -9 -8 --------- Run | Scr Mat Mat Mat Total 1327 | 50 93 747 437 Wait 286 | . . 241 45 Move 872 | 40 89 416 327 Hop . | . . . . Pick Up 16 | 4 2 9 1 Fast Attach 23 | 6 1 9 7 Attach 9 | . . 7 2 Detach 8 | . . 4 4 Swap 3 | . . . 3 Drop 18 | . . 13 5 Fire 72 | . 1 48 23 Melee . | . . . . Ram 20 | . . . 20 Kick . | . . . . Crush . | . . . . Escape Stasis . | . . . . Rewire . | . . . . Trap . | . . . . Miscellaneous . | . . . . Route ------- -11/Scrapyard -10/Materials -9/Materials -8/Materials History --------- Turn | Location | Event 2 | -11/Scrapyard | Met Revision 17 7 | -11/Scrapyard | Discovered new exit (range 16) 61 | -11/Scrapyard | Entered Materials 156 | -10/Materials | Discovered new exit (range 15) 175 | -10/Materials | Entered another Materials area 175 | -9/Materials | Evolved 2 slots: Utility x2 309 | -9/Materials | Build established: Mutant 664 | -9/Materials | Lost 3 parts (1n1u1w) 1074 | -9/Materials | Discovered new exit (range 6) 1081 | -9/Materials | Entered another Materials area 1081 | -8/Materials | Evolved 2 slots: Power x1, Propulsion x1 1649 | -8/Materials | Self-destructed Last Messages --------------- 01641_ Slammed into G-47 Trooper. 01641_ Destabilizing: System corrupted (+1). 01642_ The unstable cave ceiling collapses. 01642_ Slammed into G-47 Trooper. 01642_ U-05 Engineer lays Concrete. 01643_ Slammed into G-47 Trooper. 01643_ U-05 Engineer lays Concrete. 01644_ Slammed into G-47 Trooper. 01644_ U-05 Engineer lays Concrete. 01645_ U-05 Engineer builds a Wall. 01645_ Slammed into G-47 Trooper. 01645_ U-05 Engineer lays Concrete. 01646_ Slammed into G-47 Trooper. 01646_ G-47 Trooper destroyed. 01646_ U-05 Engineer lays Concrete. 01647_ Acquired 60 matter. 01648_ U-05 Engineer lays Concrete. 01648_ R-06 Scavenger collects Aluminum Leg. 01649_ U-05 Engineer lays Concrete. 01649_ U-05 Engineer builds a Door. Map ----- +----------------------------------------------------+ | ?????????????????????????????????????????????????? | | ?????????????????????????????????????????????????? | | ?????????????????????????????????????????????????? | | ?????????????????????????????????????????????????? | | ?????????????????????#???????????????????????????? | | ?????????????????????# ??????????????????????????? | | ?????????????????????# ?##???????????????????????? | | ?????????????????????# ## ####??##???????????????? | | ??????????????######## # #???????????????? | | ??????????????! "" ????????????????? | | ??????????????! # # "T" ?????????????????? | | ??????????????? ## ??????????????????? | | ???????????????? ##u ??????????????????? | | ????????????????" # ???????????????????? | | ????????????????"R" # ????????????????????? | | ??????????? """ # ##????????????????????? | | ??????????????? # #######???????????????? | | ?????????????????????## #???????????????? | | ??????????????######### # #???????????????? | | ??????????????#! # u+ !] #???????????????? | | ??????????????# " # !] #???????????????? | | ??????????????# """ # ![ #???????????????? | | ??????????????# """ # #???????????????? | | ??????????????# """ # !########???????????????? | | ??????????????# "" # *! / #???????????????? | | ??#???????????# """ # @# #???????????????? | | ### ########??# "" # r # #???????????????? | | #??# "" # # #???????????????? | | #??# " # # ] #???????????????? | | ?? #??# #r + #???????????????? | | ???????# #######+# ## ########???????????????? | | ???????# # #???????????????? | | ???????# # #???????????????? | | ???????# # ! """#???????????????? | | ???????# + """#???????????????? | | ???????######+## # """#???????????????? | | ????????# # # #???????????????? | | ????????# """ # ##############?????????? | | ????????# """ # #??????# #?????????? | | ????????# """ # #??????# "" #?????????? | | ????????# # #??????# "T !#?????????? | | ????????# # ##?????# "" #?????????? | | ????????######## T#?????# ########### | | ????????? # ##?????# # # | | ???????# ? # #??????# # = # | | ??????????? # ##+#####????# # # | | ????????? # # #????# """ # ! # | | ??????######+### # #????# """ # # | | ??????+ # ! ""#????# """ + # | | ???????##### ###### Y"#????# # # | +----------------------------------------------------+ Best States ------------- Heat Dissipation 38 Energy Generation 14 Energy Capacity 250 Matter Stores 300 Matter Capacity 300 Sight Range 16 Robot Scan Range 13 Terrain Scan Range 14 Terrain Scan Density 85 Propulsion Shielding 33 Evasion (%) 53 Targeting Accuracy 5 Recoil Reduction 1 Salvage Targeting 1 Offensive Hacking 10 Item Schematics ----------------- None Robot Schematics ------------------ None Fabricated ------------ Nothing Alien Tech Used ----------------- None Achievements -------------- None Challenges ------------ None Game ------ Seed SpreadCompositeAccelerator Manual? 0 Play Time 00:27:34 Cumulative 42.1 hours Start 2020.02.14 @ 08:17:45 End 2020.02.14 @ 09:07:52 Sessions 3 Manual Loads 0 Difficulty Rogue Special Mode None Game No. 33 Rogue 33 Adventurer 0 Explorer 0 Win Type - Total 0 Types 0/0/0/0/0/0/0 Lore% 18 Gallery% 27 Achievement% 16 Wizard Run 0 Options --------- ASCII 0 Keyboard 1 Movement Vi Keybinds 0 Fullscreen 1 Font 18/SmallcapsGlow Map View 76x50 Tactical HUD 1 Map Filters NONE Filters NONE Steam 1 RUN: 5667e023-f8d4-4afc-a26f-3b90e1e32139